Cogmind - Beta 10.2 @@@ ROGUE MODE // 2021.07.16 @ 19:19:02 Player: Burgers_Lettuce Result: Destroyed by G-34 Mercenary with Small Laser Performance ------------- Evolutions (1) 500 Regions Visited (3) 600 Robots Destroyed (33) 165 Value Destroyed (961) 961 Prototype IDs (2) 40 Alien Tech Used (0) 0 Bonus (27) 27 TOTAL SCORE: 2293 Bonus ------- High Alert Combat Kills 27 Cogmind --------- Core Integrity 0/400 Matter 182/300 Energy 80/100 System Corruption 0% Temperature Cool (315) Movement Walking (120) Location -9/Storage Parts ------- > --- POWER (1) -------- (None) > --- PROPULSION (2) --- Light Treads Aluminum Leg > --- UTILITY (3) ------ Small Storage Unit Improved Targeting Computer > --- WEAPON (3) ------- Compact Ion Cannon > --- INVENTORY (6) ---- Ion Engine Light Ion Engine Light Treads VTOL Module VTOL Module Peak State ------------ > --- POWER ------------ Ion Engine > --- PROPULSION ------- Light Treads Wheel > --- UTILITY ---------- Small Storage Unit Improved Targeting Computer Light Armor Plating > --- WEAPON ----------- Beam Rifle Compact Ion Cannon Grenade Launcher > --- INVENTORY -------- Ion Engine Light Ion Engine Light Treads VTOL Module VTOL Module [Rating: 16] Favorites ----------- Power Ion Engine Engine Ion Engine Power Core Light Nuclear Core Propulsion Wheel Treads Light Treads Leg Aluminum Leg Wheel Wheel Utility Small Storage Unit Storage Small Storage Unit Processor Improved Targeting Computer Protection Light Armor Plating Weapon Light Assault Rifle Energy Gun Small Laser Energy Cannon Beam Cannon Ballistic Gun Light Assault Rifle Launcher EMP Blaster Build | -11 -10 -9 -9 ------- Run | Scr Mat Mat Sto Slots Evolved 2 | . . 2 . Power . | . . . . Propulsion . | . . . . Utility 1 | . . 1 . Weapon 1 | . . 1 . Parts Attached 42 | 7 7 17 11 Power 9 | 1 1 5 2 Engine 7 | 1 1 3 2 Core 2 | . . 2 . Reactor . | . . . . Propulsion 10 | 2 1 2 5 Treads 5 | . 1 1 3 Leg 1 | . . . 1 Wheel 4 | 2 . 1 1 Hover . | . . . . Flight . | . . . . Utility 6 | 1 1 3 1 Device . | . . . . Storage 1 | 1 . . . Processor 3 | . 1 2 . Hackware . | . . . . Protection 2 | . . 1 1 Artifact . | . . . . Weapon 17 | 3 4 7 3 Energy Gun 6 | 2 1 2 1 Energy Cannon 5 | . 1 3 1 Ballistic Gun 3 | 1 1 1 . Ballistic Cannon . | . . . . Launcher 3 | . 1 1 1 Special Weapon . | . . . . Impact Weapon . | . . . . Slashing Weapon . | . . . . Piercing Weapon . | . . . . Special Melee Weapon . | . . . . Unidentified Prototypes 2 | . . 1 1 Parts Lost 16 | . 2 4 10 Power 2 | . . . 2 Propulsion 4 | . 1 1 2 Utility 2 | . . 1 1 Weapon 8 | . 1 2 5 Highest Loss Streak 5 | . 2 3 5 Average Slot Usage (%) 90 | . 91 94 77 Engine 10 | . 13 10 7 Treads 8 | . 5 9 11 Wheel 12 | . 18 11 8 Storage 11 | . 14 11 11 Processor 11 | . 11 12 11 Protection 4 | . . 7 3 Energy Gun 4 | . 3 1 9 Energy Cannon 7 | . . 11 6 Ballistic Gun 10 | . 13 11 5 Launcher 7 | . 8 7 4 Naked Turns . | . . . . Heaviest Build 25 | 12 14 25 18 Greatest Support 26 | 26 26 20 20 Greatest Overweight (x) 2 | . 1 2 1 Average Overweight (x) . | . . 1 . Largest Inventory Capacity 6 | 6 6 6 6 Average Capacity 5 | 5 6 6 6 Most Carried 6 | 2 5 6 6 Average Carried 4 | 1 4 4 5 Final Capacity 6 | 6 6 6 6 Final Carried 5 | 2 5 5 5 Class Distribution -------------------- 75% | Mutant 17% | Scavenger-Gunner 5% | Gunner Dominant Class ---------------- Mutant | -10/Materials Mutant | -9/Materials Mutant | -9/Storage Resources | -11 -10 -9 -9 ----------- Run | Scr Mat Mat Sto Matter Collected 635 | 156 19 392 68 Remotely . | . . . . Salvage Created 1127 | . 58 745 324 Parts 77 | . 9 43 25 Haulers Intercepted 1 | . . 1 . Recyclers Shooed . | . . . . Parts Field Recycled . | . . . . Retrieved Matter . | . . . . Parts Self-Destructed . | . . . . Prevented . | . . . . Kills | -11 -10 -9 -9 ------- Run | Scr Mat Mat Sto Combat Hostiles Destroyed 27 | . 3 15 9 Guns 7 | . 1 3 3 Cannons 11 | . . 8 3 AOE 9 | . 2 4 3 Classes Destroyed 9 | . 2 6 1 Worker 1 | . . . 1 Builder 2 | . . 1 1 Hauler 1 | . . 1 . Recycler 1 | . . 1 . Watcher 1 | . 1 . . Swarmer 7 | . 3 4 . Grunt 11 | . . 5 6 Brawler 1 | . . 1 . Sentry 8 | . . 5 3 Best Kill Streak 7 | . 4 5 7 Combat Bots Only 6 | . 3 5 6 Max Kills in Single Turn 2 | . 2 1 1 Gunslinging . | . . . . Exploded 2 | . 2 1 1 Melee . | . . . . Uniques/NPCs Destroyed . | . . . . Combat | -11 -10 -9 -9 -------- Run | Scr Mat Mat Sto Damage Taken 1841 | . 241 628 972 Core 527 | . 121 90 316 Absorbed by Shields . | . . . . Core Remaining (%) 75 | 100 51 . . Volleys Fired 68 | . 6 34 28 Largest 3 | . 2 3 3 Hottest 146 | . 60 128 146 Shots Fired 154 | . 11 87 56 Gun 82 | . 8 43 31 Cannon 51 | . . 34 17 Launcher 21 | . 3 10 8 Special . | . . . . Kinetic 57 | . 6 39 12 Thermal 74 | . . 38 36 Explosive 8 | . . . 8 Electromagnetic 15 | . 5 10 . Robot Hit Streak 18 | . 3 12 18 Robot Miss Streak 5 | . 4 5 1 Penetration Max . | . . . . Secondary Targets . | . . . . Shots Hit Robots 107 | . 4 57 46 Core Hits 50 | . 4 28 18 Critical Hits 2 | . . 2 . Critical Kills . | . . . . Critical Parts Destroyed 2 | . . 2 . Melee Attacks . | . . . . Impact . | . . . . Slashing . | . . . . Piercing . | . . . . Sneak Attacks . | . . . . Combat Hostiles . | . . . . Follow-up Attacks . | . . . . Damage Inflicted 2430 | . 103 1290 1037 Guns 568 | . 35 256 277 Cannons 887 | . . 532 355 Explosions 975 | . 68 502 405 Melee . | . . . . Ramming . | . . . . Kinetic 324 | . 13 223 88 Thermal 1304 | . 20 740 544 Explosive 405 | . . . 405 Electromagnetic 397 | . 70 327 . Impact . | . . . . Slashing . | . . . . Piercing . | . . . . Highest Corruption . | . . . . Average Corruption . | . . . . Corruption Purged . | . . . . Overload Shots . | . . . . Overflow Damage 79 | . 6 25 48 Projectiles 30 | . . 16 14 Explosions 49 | . 6 9 34 Melee . | . . . . Knockbacks . | . . . . Impact . | . . . . Kinetic . | . . . . Secondary . | . . . . Self-Inflicted Damage 468 | . 154 101 213 Shots 11 | . 3 2 6 Rammed . | . . . . Targets Rammed . | . . . . Kicked . | . . . . Crushed . | . . . . Highest Temperature 773 | . 24 385 773 Average Temperature 173 | . 14 124 263 Received Heat Transfer 375 | . . 117 258 Effects 18 | . . 1 17 Shutdowns 2 | . . 1 1 Energy Bleed 5 | . . . 5 Interference 2 | . . . 2 Matter Decay 1 | . . . 1 Damage (minor) 3 | . . . 3 Damage (major) 3 | . . . 3 Damage (core) 2 | . . . 2 Siege Activations . | . . . . Robots Corrupted 1 | . . 1 . Combat Hostiles . | . . . . Parts Fried 2 | . 1 1 . Impact Corruptions . | . . . . Robots Melted . | . . . . Combat Hostiles . | . . . . Parts Melted 3 | . . 2 1 Heat Transferred 2315 | . 50 1311 954 Parts Sabotaged . | . . . . Parts Stolen . | . . . . Parts Stripped . | . . . . Power Chain Reactions 3 | . 1 2 . Missiles Intercepted . | . . . . Alert | -11 -10 -9 -9 ------- Run | Scr Mat Mat Sto Peak Influence 445 | . 121 342 445 Initial 144 | . . 50 144 Average 188 | . 75 221 282 Maximum Alert Level 2 | . . 1 2 Low Security (%) 49 | 100 100 32 23 Level 1 47 | . . 67 62 Level 2 2 | . . . 13 Level 3 . | . . . . Level 4 . | . . . . Level 5 . | . . . . High Security . | . . . . Max Security . | . . . . Squads Dispatched 4 | . 1 2 1 Investigation 1 | . . 1 . Extermination . | . . . . Reinforcement 3 | . 1 1 1 Assault . | . . . . Garrison . | . . . . Intercept . | . . . . Construction Impeded 1 | . . . 1 Haulers Reinforced . | . . . . Stealth | -11 -10 -9 -9 --------- Run | Scr Mat Mat Sto Distress Signals 6 | . 1 2 3 Communications Jammed . | . . . . Distress Signals . | . . . . Times Spotted 44 | . 6 21 17 Peak Tracking Total 8 | . 4 5 8 Tactical Retreats 2 | . . 1 1 Traps | -11 -10 -9 -9 ------- Run | Scr Mat Mat Sto Traps Triggered 2 | . 2 . . Indirectly . | . . . . Trap Hack Attempts . | . . . . Triggered . | . . . . Disarmed . | . . . . Reprogrammed . | . . . . Reused . | . . . . Traps Extracted . | . . . . Installed . | . . . . Triggered . | . . . . Machines | -11 -10 -9 -9 ---------- Run | Scr Mat Mat Sto Machines Disabled 6 | . 2 2 2 Max in Single Turn 1 | . 1 1 1 Machines Sabotaged . | . . . . Garrisons Compromised . | . . . . Overloaded Fab Kills . | . . . . Fab Network Shutdowns . | . . . . Hacking | -11 -10 -9 -9 --------- Run | Scr Mat Mat Sto Machines Accessed 9 | . 3 4 2 Terminals 8 | . 3 3 2 Fabricators . | . . . . Repair Stations . | . . . . Recycling Units 1 | . . 1 . Scanalyzers . | . . . . Garrison Access . | . . . . Total Hacks 21 | . 7 9 5 Successful 15 | . 5 7 3 Failed 6 | . 2 2 2 Catastrophic . | . . . . Database Lockouts . | . . . . Manual 16 | . 7 7 2 Terminals 19 | . 7 7 5 Fabricators . | . . . . Repair Stations . | . . . . Recycling Units 2 | . . 2 . Scanalyzers . | . . . . Garrison Access . | . . . . Terminal Hacks 5 | . 1 3 1 Record 1 | . . 1 . Robot Analysis 1 | . 1 . . Open Door 1 | . . . 1 Unreport Threat 2 | . . 2 . Fabricator Hacks . | . . . . Repair Station Hacks . | . . . . Recycling Unit Hacks 1 | . . 1 . Report Inventory 1 | . . 1 . Scanalyzer . | . . . . Garrison Access Hacks . | . . . . Unauthorized Hacks 7 | . 3 3 1 Terminals 6 | . 3 2 1 Botnet 6 | . 3 2 1 Fabricators . | . . . . Repair Stations . | . . . . Recycling Units 1 | . . 1 . Tunnel 1 | . . 1 . Scanalyzers . | . . . . Garrison Access . | . . . . Data Cores Recovered . | . . . . Used . | . . . . Hacking Detections 8 | . 4 3 1 Full Trace Events 2 | . 1 . 1 Feedback Events . | . . . . Feedback Blocked . | . . . . Robot Schematics Acquired . | . . . . Robots Built . | . . . . Matter . | . . . . Time . | . . . . Total Robot Build Rating . | . . . . Part Schematics Acquired . | . . . . Parts Built . | . . . . Matter . | . . . . Time . | . . . . Total Part Build Rating . | . . . . Parts Repaired . | . . . . Time . | . . . . Parts Recycled . | . . . . Recycled Matter . | . . . . Retrieved Matter . | . . . . Retrieved Components . | . . . . Parts Scanalyzed . | . . . . Part Schematics Acquired . | . . . . Parts Damaged . | . . . . Bothacking | -11 -10 -9 -9 ------------ Run | Scr Mat Mat Sto Used RIF Installer . | . . . . Robots Hacked . | . . . . Non-combat . | . . . . Combat . | . . . . Robot Hacks Applied . | . . . . Relay Couplers Released . | . . . . Robots Rewired . | . . . . Allies Hacked . | . . . . Hacks Repelled . | . . . . Allies | -11 -10 -9 -9 -------- Run | Scr Mat Mat Sto Total Allies . | . . . . Largest Group . | . . . . Highest-Rated Group . | . . . . Highest-Rated Ally . | . . . . Total Orders . | . . . . Ally Attacks . | . . . . Total Damage . | . . . . Kills . | . . . . Allies Corrupted . | . . . . Allies Melted . | . . . . Intel | -11 -10 -9 -9 ------- Run | Scr Mat Mat Sto Robot Analysis Total 1 | . 1 . . Derelict Logs Recovered . | . . . . Drone Launches . | . . . . Drone Recoveries . | . . . . Exploration | -11 -10 -9 -9 ------------- Run | Scr Mat Mat Sto Turns Passed 1238 | 84 261 633 260 Spaces Moved 816 | 86 255 339 136 Core 27 | 27 . . . Treads 76 | . . 29 47 Legs 1 | . . . 1 Wheels 712 | 59 255 310 88 Hover . | . . . . Flight . | . . . . Fastest Speed 50 | 50 90 80 90 Average Speed 95 | 78 90 96 114 Slowest Speed 160 | 100 90 160 160 Overloaded Moves . | . . . . Propulsion Burnouts . | . . . . Robots Hopped . | . . . . Cave-ins Triggered . | . . . . Exploration Rate (%) 29 | 4 53 38 22 Regions Visited 3 Branch Regions 1 Pre-discovered Areas 1 | . . 1 . Known Exits Taken . | . . . . Unknown Exits Taken 3 | 1 1 1 . Scrap Searched . | . . . . Spaces Dug . | . . . . Terrain Destroyed 88 | . 33 36 19 Melee . | . . . . Projectile 1 | . . . 1 AOE 87 | . 33 36 18 Terrain Rammed . | . . . . Walls Destroyed . | . . . . Machines Disabled . | . . . . Actions | -11 -10 -9 -9 --------- Run | Scr Mat Mat Sto Total 1137 | 99 273 577 188 Wait 196 | 5 2 178 11 Move 813 | 85 254 338 136 Hop . | . . . . Pick Up 5 | 1 4 . . Fast Attach 29 | 7 5 12 5 Attach 6 | . 1 3 2 Detach 4 | 1 . 3 . Swap 7 | . 1 2 4 Drop 9 | . . 7 2 Fire 68 | . 6 34 28 Melee . | . . . . Ram . | . . . . Kick . | . . . . Crush . | . . . . Escape Stasis . | . . . . Rewire . | . . . . Trap . | . . . . Miscellaneous . | . . . . Route ------- -11/Scrapyard -10/Materials (discovered 2 exits: *Mat / [*Min]) -9/Materials -9/Storage History --------- Turn | Location | Event 8 | -11/Scrapyard | Discovered new exit (range 16) 85 | -11/Scrapyard | Entered Materials 252 | -10/Materials | Discovered new exit (range 11) 313 | -10/Materials | Build established: Mutant 317 | -10/Materials | Discovered new exit (range 6) 346 | -10/Materials | Entered another Materials area 346 | -9/Materials | Evolved 2 slots: Utility x1, Weapon x1 874 | -9/Materials | Lost 3 parts (1n1u1w) 897 | -9/Materials | Discovered new exit (range 16) 979 | -9/Materials | Entered Storage 1143 | -9/Storage | Lost 5 parts (1p1n3w) 1207 | -9/Storage | Core integrity fell below 50% 1225 | -9/Storage | Core integrity fell below 20% 1239 | -9/Storage | Destroyed by G-34 Mercenary with Small Laser Last Messages --------------- 01218_ Lgt. Armor Plating destroyed. 01218_ Destroyed Lgt. Armor Plating. 01218_ Grenade Launcher destroyed. 01218_ Destroyed Grenade Launcher. 01219_ Overheating: Imp. Targeting Computer damaged (-6). 01221_ Overheating: Energy bleed (-11). 01223_ Overheating: Energy bleed (-7). 01224_ Overheating: Energy bleed (-10). 01224_ U-05 Engineer lays Concrete. 01225_ Overheating: Core damaged (-48). 01225_ U-05 Engineer lays Concrete. 01226_ Overheating: Energy bleed (-10). 01228_ Overheating: Com. Ion Cannon damaged (-44). 01233_ Overheating: System interference. 01233_ Imp. Targeting Computer temporarily disabled. 01233_ Com. Ion Cannon temporarily disabled. 01234_ U-05 Engineer builds a Wall. 01237_ Acquired Aluminum Leg. 01239_ U-05 Engineer builds a Wall. 01239_ U-05 Engineer lays Concrete. Map ----- +----------------------------------------------------+ | ????????????????????????????????????? | | ????????????????????????????????????? | | ????????????????????????????????????? | | ????????????????????????????????????? | | ????????????????????????????????????? | | ????????????????????????????????????? | | ????????????????????????????????????? | | ????????????????????????????????????? | | ????????????????????????????????????? | | ????????????????????????????????????? | | ????????????? ?????????????????????? | | ????????????? #????????????????????? | | ????????????? #????????????????????? | | ????????????? #????????????????????? | | ???????????##^a##???????????????????? | | ??????????# a####????????????????? | | ??????????# ?????????????????? | | ??????????+ ??????????????????? | | ??????????? ???????????????????? | | ??????????? ???????????##??????## | | ???????????# a#??????????? #???? | | ???????????# gg#??????????? #???# | | ?????????### u #?????????"" #???# | | ?????????# #?????????"" #???# | | ?????????# =g #?????????"" #???# """ | | ???????### @[ ####??????"" #???# """ | | ???????# =!== #?????? #???# """ | | ???????### #*%| #?????? ?????? | | ????????# #u ! ########+#???????#+ | | ????????#### #???????# | | ?????????####+###### #???????# | | ???????### ## ######### | | ???????#"" ## + # | | ???????#"T ""##### # # | | ???????#"" ""#???# # + | | ???????### ""#???# # ## | | ?????????# """#???# # #? | | ?????????# """#####+##+#########? | | ?????????# # #????????? | | ?????????# = = # #????????? | | ?????????####### ## #????????? | | ???????????????#### """ #????????? | | ??????????????????# """ #????????? | | ??????????????????# """ #????????? | | ??????????????????# % """ #????????? | | ??????????????????# """ ##???????? | | ??????????????????# % #???????? | | ?????################/#######???????? | | ?????# ? | | ?????# ? | +----------------------------------------------------+ Best States ------------- Heat Dissipation 28 Energy Generation 12 Energy Capacity 265 Matter Stores 300 Matter Capacity 300 Sight Range 16 Terrain Scan Density 85 Armor Coverage 150 Evasion (%) 50 Targeting Accuracy 6 Recoil Reduction 1 Item Schematics ----------------- None Robot Schematics ------------------ None Fabricated ------------ Nothing Alien Tech Used ----------------- None Achievements -------------- None Challenges ------------ None Game ------ Seed FireBlastStorm Manual? 0 Play Time 00:23:36 Cumulative 22.8 hours Start 2021.07.14 @ 22:04:49 End 2021.07.16 @ 19:19:02 Sessions 5 Manual Loads 0 Difficulty Rogue Special Mode None Game No. 22 Rogue 22 Adventurer 0 Explorer 0 Win Type - Total 0 Types 0/0/0/0/0/0/0/0/0 Lore% 14 Gallery% 24 Achievement% 21 Wizard Run 0 Options --------- ASCII 0 Keyboard 1 Movement Numpad Keybinds 0 Fullscreen 2 Font 36/X11 Map View 76x50 Tactical HUD 1 Map Filters NONE Filters NONE Steam 1 RUN: c43bb2d1-8216-401f-a523-7844ee8d43c3